fUSD/lending_fUSD_20250623
["ID","MTS","AMOUNT","RATE_DAILY","PERIOD"]
[367114135,1750662713554,-490.0,0.00029315,3]
[367114136,1750662713565,-1690.95,0.00029315,3]
[367114137,1750662713574,-490.0,0.00029315,3]
[367114138,1750662713583,-490.0,0.00029315,3]
[367114139,1750662713594,-1674.28,0.00029315,3]
[367114140,1750662713603,-490.0,0.00029315,3]
[367114141,1750662713613,-638.77,0.00029315,3]
[367114142,1750662713623,-1574.11,0.00029315,3]
[367114143,1750662713632,-378.81,0.00029315,3]
[367114144,1750662713642,-684.38,0.00029315,3]
[367114145,1750662713651,-1278.36,0.00029315,3]
[367114146,1750662713660,-905.6,0.00029315,3]
[367114147,1750662713669,-1682.39,0.00029315,3]
[367114148,1750662713679,-1126.22,0.00029315,3]
[367114149,1750662713688,-1410.38,0.00029315,3]
[367114150,1750662713697,-1883.69,0.00029315,3]
[367114151,1750662713706,-7415.21,0.00029315,3]
[367114152,1750662713716,-2332.56,0.00029315,3]
[367114153,1750662713726,-490.0,0.00029315,3]
[367114154,1750662713736,-490.0,0.00029315,3]
[367114155,1750662713745,-1248.93,0.00029315,3]
[367114156,1750662713755,-490.0,0.00029315,3]
[367114157,1750662713764,-1449.04,0.00029315,3]
[367114158,1750662713774,-849.69,0.00029315,3]
[367114159,1750662713783,-883.32,0.00029315,3]
[367114160,1750662713793,-417.71316375,0.00029315,3]
[367114161,1750662713802,-587.88,0.00029315,3]
[367114162,1750662713812,-901.3,0.00029315,3]
[367114163,1750662713822,-277.97061006,0.00029315,3]
[367114164,1750662713832,-1164.04,0.00029315,3]
[367114165,1750662713841,-490.0,0.00029315,3]
[367114166,1750662713850,-1753.14,0.00029315,3]
[367114167,1750662713859,-490.0,0.00029315,3]
[367114168,1750662713869,-4073.96,0.00029315,3]
[367114169,1750662713879,-10399.38,0.00029315,3]
[367114170,1750662713889,-580.67,0.00029315,3]
[367114171,1750662713898,-490.0,0.00029315,3]
[367114172,1750662713908,-1448.46,0.00029315,3]
[367114173,1750662713920,-836.73,0.00029315,3]
[367114174,1750662713929,-918.93,0.00029315,3]
[367114175,1750662713940,-526.35,0.00029315,3]
[367114176,1750662713949,-1355.08,0.00029315,3]
[367114177,1750662713960,-6824.52,0.00029315,3]
[367114178,1750662713971,-1900.51,0.00029315,3]
[367114179,1750662713980,-1016.76,0.00029315,3]
[367114180,1750662713990,-3401.6,0.00029315,3]
[367114181,1750662713999,-3966.47,0.00029315,3]
[367114182,1750662714008,-1741.72,0.00029315,3]
[367114183,1750662714017,-490.0,0.00029315,3]
[367114184,1750662714027,-490.0,0.00029315,3]
[367114185,1750662714039,-909.73,0.00029315,3]
[367114186,1750662714050,-608.52,0.00029315,3]
[367114187,1750662714060,-490.0,0.00029315,3]
[367114188,1750662714071,-934.07,0.00029315,3]
[367114189,1750662714080,-4949.36,0.00029315,3]
[367114190,1750662714090,-490.0,0.00029315,3]
[367114191,1750662714100,-2915.88,0.00029315,3]
[367114192,1750662714110,-490.0,0.00029315,3]
[367114193,1750662714120,-1585.93,0.00029315,3]
[367114194,1750662714130,-490.0,0.00029315,3]
[367114195,1750662714139,-490.0,0.00029315,3]
[367114196,1750662714150,-18062.45,0.00029315,3]
[367114197,1750662714159,-814.19,0.00029315,3]
[367114198,1750662714169,-3468.99,0.00029315,3]
[367114199,1750662714179,-1570.58,0.00029315,3]
[367114200,1750662714189,-1672.97,0.00029315,3]
[367114201,1750662714198,-789.6,0.00029315,3]
[367114202,1750662714208,-798.22,0.00029315,3]
[367114203,1750662714218,-1533.06,0.00029315,3]
[367114204,1750662714228,-1681.4,0.00029315,3]
[367114205,1750662714238,-490.0,0.00029315,3]
[367114206,1750662714248,-528.64,0.00029315,3]
[367114207,1750662714259,-1108.02,0.00029315,3]
[367114208,1750662714268,-1980.76,0.00029315,3]
[367114209,1750662714278,-2594.4,0.00029315,3]
[367114210,1750662714289,-490.0,0.00029315,3]
[367114211,1750662714299,-1623.55,0.00029315,3]
[367114212,1750662714309,-490.0,0.00029315,3]
[367114213,1750662714319,-490.0,0.00029315,3]
[367114214,1750662714329,-891.21,0.00029315,3]
[367114215,1750662714339,-1019.18,0.00029315,3]
[367114216,1750662714350,-1174.99,0.00029315,3]
[367114217,1750662714360,-3127.29,0.00029315,3]
[367114218,1750662714371,-490.0,0.00029315,3]
[367114219,1750662714381,-1569.21,0.00029315,3]
[367114220,1750662714391,-490.0,0.00029315,3]
[367114221,1750662714401,-1940.59,0.00029315,3]
[367114222,1750662714411,-2329.34,0.00029315,3]
[367114223,1750662714420,-664.92,0.00029315,3]
[367114224,1750662714430,-1830.85,0.00029315,3]
[367114225,1750662714439,-1700.21,0.00029315,3]
[367114226,1750662714450,-490.0,0.00029315,3]
[367114227,1750662714459,-2769.81,0.00029315,3]
[367114228,1750662714469,-490.0,0.00029315,3]
[367114229,1750662714478,-6713.02,0.00029315,3]
[367114230,1750662714488,-777.56,0.00029315,3]
[367114231,1750662714498,-2394.73,0.00029315,3]
[367114232,1750662714507,-826.09,0.00029315,3]
[367114233,1750662714521,-1294.78,0.00029315,3]
[367114234,1750662714531,-490.0,0.00029315,3]
[367114235,1750662714541,-1749.09,0.00029315,3]
[367114236,1750662714550,-760.04,0.00029315,3]
[367114237,1750662714560,-490.0,0.00029315,3]
[367114238,1750662714570,-555.71,0.00029315,3]
[367114239,1750662714579,-1626.24,0.00029315,3]
[367114240,1750662714589,-713.4,0.00029315,3]
[367114241,1750662714599,-4056.64,0.00029315,3]
[367114242,1750662714609,-490.0,0.00029315,3]
[367114243,1750662714619,-1498.64,0.00029315,3]
[367114244,1750662714629,-1457.21,0.00029315,3]
[367114245,1750662714639,-490.0,0.00029315,3]
[367114246,1750662714648,-737.54,0.00029315,3]
[367114247,1750662714659,-1307.83,0.00029315,3]
[367114248,1750662714669,-728.06,0.00029315,3]
[367114249,1750662714679,-490.0,0.00029315,3]
[367114250,1750662714688,-1832.35,0.00029315,3]
[367114251,1750662714698,-1380.67,0.00029315,3]
[367114252,1750662714711,-2228.14,0.00029315,3]
[367114253,1750662714722,-628.12391136,0.00029315,3]
[367114254,1750662714732,-2372.02,0.00029315,3]
[367114255,1750662714741,-490.0,0.00029315,3]
[367114256,1750662714750,-3318.96,0.00029315,3]
[367114257,1750662714759,-709.01,0.00029315,3]
[367114258,1750662714769,-862.45,0.00029315,3]
[367114259,1750662714779,-788.8,0.00029315,3]
[367114260,1750662714789,-490.0,0.00029315,3]
[367114261,1750662714799,-1200.13,0.00029315,3]
[367114262,1750662714808,-1916.86,0.00029315,3]
[367114263,1750662714818,-678.77,0.00029315,3]
[367114264,1750662714827,-4654.08,0.00029315,3]
[367114265,1750662714837,-1366.52,0.00029315,3]
[367114266,1750662714847,-515.04,0.00029315,3]
[367114267,1750662714856,-788.62,0.00029315,3]
[367114268,1750662714867,-553.78,0.00029315,3]
[367114269,1750662714876,-1578.33,0.00029315,3]
[367114270,1750662714885,-1107.26,0.00029315,3]
[367114271,1750662714895,-498.97,0.00029315,3]
[367114272,1750662714904,-7394.17,0.00029315,3]
[367114273,1750662714914,-1624.99,0.00029315,3]
[367114274,1750662714923,-490.0,0.00029315,3]
[367114275,1750662714933,-490.0,0.00029315,3]
[367114276,1750662714942,-1036.64,0.00029315,3]
[367114277,1750662714951,-500.0,0.00029315,3]
[367114278,1750662714962,-490.0,0.00029315,3]
[367114279,1750662714971,-2834.49,0.00029315,3]
[367114280,1750662714981,-12536.04,0.00029315,3]
[367114281,1750662714990,-3543.99,0.00029315,3]
[367114282,1750662715000,-490.0,0.00029315,3]
[367114283,1750662715010,-1768.62,0.00029315,3]
[367114284,1750662715019,-585.23308098,0.00029315,3]
[367114285,1750662715029,-497.45,0.00029315,3]
[367114286,1750662715039,-490.0,0.00029315,3]
[367114287,1750662715048,-490.0,0.00029315,3]
[367114288,1750662715057,-1947.91,0.00029315,3]
[367114289,1750662715067,-510.26,0.00029315,3]
[367114290,1750662715076,-1619.96,0.00029315,3]
[367114291,1750662715085,-510.41,0.00029315,3]
[367114292,1750662715094,-5190.35,0.00029315,3]
[367114293,1750662715103,-9852.89,0.00029315,3]
[367114294,1750662715113,-490.0,0.00029315,3]
[367114295,1750662715125,-1552.44,0.00029315,3]
[367114296,1750662715136,-814.87,0.00029315,3]
[367114297,1750662715146,-2783.14,0.00029315,3]
[367114298,1750662715155,-1717.08,0.00029315,3]
[367114299,1750662715165,-490.0,0.00029315,3]
[367114300,1750662715175,-2330.84,0.00029315,3]
[367114301,1750662715184,-1630.26,0.00029315,3]
[367114302,1750662715194,-752.02,0.00029315,3]
[367114303,1750662715205,-490.0,0.00029315,3]
[367114304,1750662715215,-1618.67,0.00029315,3]
[367114305,1750662715225,-490.0,0.00029315,3]
[367114306,1750662715235,-1151.97,0.00029315,3]
[367114307,1750662715244,-1776.65,0.00029315,3]
[367114308,1750662715253,-915.84,0.00029315,3]
[367114309,1750662715263,-670.37,0.00029315,3]
[367114310,1750662715272,-3986.65,0.00029315,3]
[367114311,1750662715281,-1960.82,0.00029315,3]
[367114312,1750662715291,-1591.01,0.00029315,3]
[367114313,1750662715300,-6065.53,0.00029315,3]
[367114314,1750662715309,-1605.38,0.00029315,3]
[367114315,1750662715319,-1642.63,0.00029315,3]
[367114316,1750662715328,-798.12,0.00029315,3]
[367114317,1750662715339,-490.0,0.00029315,3]
[367114318,1750662715348,-1292.66,0.00029315,3]
[367114319,1750662715357,-4219.23,0.00029315,3]
[367114320,1750662715369,-2292.5,0.00029315,3]
[367114321,1750662715378,-2903.63,0.00029315,3]
[367114322,1750662715387,-1562.1,0.00029315,3]
[367114323,1750662715398,-765.43,0.00029315,3]
[367114324,1750662715407,-1872.32,0.00029315,3]
[367114325,1750662715419,-3240.53,0.00029315,3]
[367114326,1750662715433,-492.32,0.00029315,3]
[367114327,1750662715449,-1684.89,0.00029315,3]
[367114328,1750662715463,-1499.13,0.00029315,3]
[367114329,1750662715474,-2262.37,0.00029315,3]
[367114330,1750662715487,-1822.31,0.00029315,3]
[367114331,1750662715501,-745.32,0.00029315,3]
[367114332,1750662715516,-490.0,0.00029315,3]
[367114333,1750662715531,-490.0,0.00029315,3]
[367114334,1750662715545,-547.20220315,0.00029315,3]
[367114335,1750662715557,-1565.33,0.00029315,3]
[367114336,1750662715569,-3248.59,0.00029315,3]
[367114337,1750662715582,-1599.78,0.00029315,3]
[367114338,1750662715598,-1190.83,0.00029315,3]
[367114339,1750662715612,-795.18,0.00029315,3]
[367114340,1750662715629,-638.67,0.00029315,3]
[367114341,1750662715644,-8785.1,0.00029315,3]
[367114342,1750662715657,-849.6,0.00029315,3]
[367114343,1750662715672,-1583.66,0.00029315,3]
[367114344,1750662715686,-1787.94,0.00029315,3]
[367114345,1750662715699,-490.0,0.00029315,3]
[367114346,1750662715713,-1444.68,0.00029315,3]
[367114347,1750662715725,-1335.88,0.00029315,3]
[367114348,1750662715738,-490.31,0.00029315,3]
[367114349,1750662715753,-948.02,0.00029315,3]
[367114350,1750662715765,-490.0,0.00029315,3]
[367114351,1750662715778,-507.9,0.00029315,3]
[367114352,1750662715789,-3963.91,0.00029315,3]
[367114353,1750662715801,-269.71591176,0.00029315,3]
[367114354,1750662715816,-1578.99,0.00029315,3]
[367114355,1750662715830,-1445.82,0.00029315,3]
[367114356,1750662715841,-1285.59,0.00029315,3]
[367114357,1750662715853,-490.0,0.00029315,3]
[367114358,1750662715869,-490.0,0.00029315,3]
[367114359,1750662715883,-490.0,0.00029315,3]
[367114360,1750662715895,-466.86887206,0.00029315,3]
[367114361,1750662715906,-490.0,0.00029315,3]
[367114362,1750662715917,-728.45,0.00029315,3]
[367114363,1750662715932,-806.96,0.00029315,3]
[367114364,1750662715944,-490.0,0.00029315,3]
[367114365,1750662715956,-1797.81,0.00029315,3]
[367114366,1750662715968,-1831.64,0.00029315,3]
[367114367,1750662715979,-1432.05,0.00029315,3]
[367114368,1750662715991,-919.07,0.00029315,3]
[367114369,1750662716003,-14900.62,0.00029315,3]
[367114370,1750662716016,-1833.67,0.00029315,3]
[367114371,1750662716029,-2078.39,0.00029315,3]
[367114372,1750662716042,-510.45,0.00029315,3]
[367114373,1750662716054,-490.0,0.00029315,3]
[367114374,1750662716066,-490.0,0.00029315,3]
[367114375,1750662716078,-4833.93,0.00029315,3]
[367114376,1750662716090,-490.0,0.00029315,3]
[367114377,1750662716103,-1601.31,0.00029315,3]
[367114378,1750662716118,-759.06,0.00029315,3]
[367114379,1750662716130,-873.41,0.00029315,3]
[367114380,1750662716142,-4669.42,0.00029315,3]
[367114381,1750662716153,-791.68,0.00029315,3]
[367114382,1750662716166,-1693.53,0.00029315,3]
[367114383,1750662716179,-990.18,0.00029315,3]
[367114384,1750662716191,-1034.99,0.00029315,3]
[367114385,1750662716202,-490.0,0.00029315,3]
[367114386,1750662716214,-1620.6,0.00029315,3]
[367114387,1750662716227,-1653.45,0.00029315,3]
[367114388,1750662716239,-1389.7,0.00029315,3]
[367114389,1750662716251,-3451.15,0.00029315,3]
[367114390,1750662716263,-490.0,0.00029315,3]
[367114391,1750662716275,-490.0,0.00029315,3]
[367114392,1750662716288,-993.54,0.00029315,3]
[367114393,1750662716300,-2416.24,0.00029315,3]
[367114394,1750662716313,-490.0,0.00029315,3]
[367114395,1750662716325,-566.41,0.00029315,3]
[367114396,1750662716337,-11090.94,0.00029315,3]
[367114397,1750662716349,-1221.42,0.00029315,3]
[367114398,1750662716361,-1799.28,0.00029315,3]
[367114399,1750662716374,-2070.18,0.00029315,3]
[367114400,1750662716387,-1701.67,0.00029315,3]
[367114401,1750662716399,-1378.47,0.00029315,3]
[367114402,1750662716411,-1087.15,0.00029315,3]
[367114403,1750662716423,-1736.17,0.00029315,3]
[367114404,1750662716434,-1351.61,0.00029315,3]
[367114405,1750662716445,-490.0,0.00029315,3]
[367114406,1750662716457,-1816.97,0.00029315,3]
[367114407,1750662716469,-490.0,0.00029315,3]
[367114408,1750662716480,-709.09,0.00029315,3]
[367114409,1750662716492,-1834.95,0.00029315,3]
[367114410,1750662716504,-1672.0,0.00029315,3]
[367114411,1750662716517,-1571.12,0.00029315,3]
[367114412,1750662716529,-490.0,0.00029315,3]
[367114413,1750662716541,-490.0,0.00029315,3]
[367114414,1750662716552,-4884.01,0.00029315,3]
[367114415,1750662716563,-1729.07,0.00029315,3]
[367114416,1750662716575,-8073.75,0.00029315,3]
[367114417,1750662716587,-1652.26,0.00029315,3]
[367114418,1750662716599,-718.8,0.00029315,3]
[367114419,1750662716611,-490.0,0.00029315,3]
[367114420,1750662716623,-867.32,0.00029315,3]
[367114421,1750662716635,-30050.84,0.00029315,3]
[367114422,1750662716647,-490.0,0.00029315,3]
[367114423,1750662716659,-1482.76,0.00029315,3]
[367114424,1750662716671,-1513.2,0.00029315,3]
[367114425,1750662716683,-1869.9,0.00029315,3]
[367114426,1750662716695,-490.0,0.00029315,3]
[367114427,1750662716707,-490.0,0.00029315,3]
[367114428,1750662716718,-825.47,0.00029315,3]
[367114429,1750662716729,-1291.21,0.00029315,3]
[367114430,1750662716741,-490.0,0.00029315,3]
[367114431,1750662716752,-529.57,0.00029315,3]
[367114432,1750662716764,-1000.93,0.00029315,3]
[367114433,1750662716775,-1013.98,0.00029315,2]
[367114434,1750662716786,-2626.45,0.00029315,3]
[367114435,1750662716797,-1301.95,0.00029315,3]
[367114436,1750662716809,-749.71,0.00029315,3]
[367114437,1750662716819,-914.97,0.00029315,3]
[367114438,1750662716831,-5331.91,0.00029315,3]
[367114439,1750662716841,-6188.74,0.00029315,3]
[367114440,1750662716852,-733.17,0.00029315,3]
[367114441,1750662716863,-2204.74,0.00029315,3]
[367114442,1750662716876,-742.07,0.00029315,3]
[367114443,1750662716887,-1553.91,0.00029315,3]
[367114444,1750662716898,-866.05,0.00029315,3]
[367114445,1750662716909,-1201.89,0.00029315,3]
[367114446,1750662716920,-5637.09,0.00029315,3]
[367114447,1750662716931,-716.87,0.00029315,3]
[367114448,1750662716942,-490.0,0.00029315,3]
[367114449,1750662716953,-1651.87,0.00029315,3]
[367114450,1750662716965,-2465.19,0.00029315,3]
[367114451,1750662716976,-1607.85,0.00029315,3]
[367114452,1750662716990,-572.05,0.00029315,3]
[367114453,1750662717001,-1906.99,0.00029315,3]
[367114454,1750662717012,-1536.26,0.00029315,3]
[367114455,1750662717025,-1920.56,0.00029315,3]
[367114456,1750662717036,-2965.58,0.00029315,3]
[367114457,1750662717048,-1131.73,0.00029315,3]
[367114458,1750662717060,-764.72,0.00029315,3]
[367114459,1750662717071,-594.04,0.00029315,3]
[367114460,1750662717083,-490.0,0.00029315,3]
[367114461,1750662717094,-490.0,0.00029315,3]
[367114462,1750662717106,-1385.46,0.00029315,3]
[367114463,1750662717118,-1205.8,0.00029315,3]
[367114464,1750662717130,-473.59164125,0.00029315,3]
[367114465,1750662717141,-1080.0,0.00029364,5]
[367114466,1750662717152,-201.3339867,0.00029397,30]
[367114467,1750662717163,-211.0,0.000294,2]
[367114468,1750662717174,-201.0,0.00029444,10]
[367114469,1750662717186,-201.3339867,0.00029534,30]
[367114470,1750662717197,-43221.0821701,0.00029549,2]
[367114471,1750662717209,-1258.03765544,0.00029555,21]
[367114472,1750662717220,-1196.7224541,0.00029571,2]
[367114473,1750662717231,-5455.753665,0.00029589,3]
[367114474,1750662717243,-151.476984,0.00029589,3]
[367114475,1750662717255,-206.92276457,0.00029589,3]
[367114476,1750662717267,-490.0,0.00029589,3]
[367114477,1750662717279,-906.91,0.00029589,3]
[367114478,1750662717291,-490.0,0.00029589,3]
[367114479,1750662717303,-490.0,0.00029589,3]
[367114480,1750662717314,-490.0,0.00029589,3]
[367114481,1750662717326,-733.39,0.00029589,3]
[367114482,1750662717337,-490.0,0.00029589,3]
[367114483,1750662717349,-490.0,0.00029589,3]
[367114484,1750662717360,-490.0,0.00029589,3]
[367114485,1750662717375,-490.0,0.00029589,3]
[367114486,1750662717387,-252.921479,0.00029589,3]
[367114487,1750662717399,-958.78,0.00029589,3]
[367114488,1750662717410,-972.11,0.00029589,3]
[367114489,1750662717422,-490.0,0.00029589,3]
[367114490,1750662717434,-2591.829598,0.00029589,3]
[367114491,1750662717445,-615.11,0.00029589,3]
[367114492,1750662717457,-804.23,0.00029589,3]
[367114493,1750662717468,-498.97745684,0.00029589,3]
[367114494,1750662717479,-490.0,0.00029589,3]
[367114495,1750662717491,-490.0,0.00029589,3]
[367114496,1750662717503,-490.0,0.00029589,3]
[367114497,1750662717514,-490.0,0.00029589,3]
[367114498,1750662717529,-490.0,0.00029589,3]
[367114499,1750662717540,-490.0,0.00029589,3]
[367114500,1750662717551,-1075.31,0.00029589,3]
[367114501,1750662717564,-811.41,0.00029589,3]
[367114502,1750662717575,-663.45,0.00029589,3]
[367114503,1750662717586,-490.0,0.00029589,3]
[367114504,1750662717599,-695.49,0.00029589,3]
[367114505,1750662717611,-490.0,0.00029589,3]
[367114506,1750662717625,-977.66,0.00029589,3]
[367114507,1750662717636,-833.21,0.00029589,3]
[367114508,1750662717647,-591.25,0.00029589,3]
[367114509,1750662717659,-490.0,0.00029589,3]
[367114510,1750662717670,-690.16,0.00029589,3]
[367114511,1750662717683,-1109.36,0.00029589,3]
[367114512,1750662717695,-490.0,0.00029589,3]
[367114513,1750662717706,-490.0,0.00029589,3]
[367114514,1750662717717,-526.92,0.00029589,3]
[367114515,1750662717728,-519.11,0.00029589,3]
[367114516,1750662717740,-490.0,0.00029589,3]
[367114517,1750662717752,-970.12,0.00029589,3]
[367114518,1750662717763,-1478.36,0.00029589,3]
[367114519,1750662717775,-490.0,0.00029589,3]
[367114520,1750662717786,-490.0,0.00029589,3]
[367114521,1750662717797,-1376.6,0.00029589,3]
[367114522,1750662717809,-490.0,0.00029589,3]
[367114523,1750662717819,-889.62,0.00029589,3]
[367114524,1750662717831,-490.0,0.00029589,3]
[367114525,1750662717843,-1155.19,0.00029589,3]
[367114526,1750662717854,-490.0,0.00029589,3]
[367114527,1750662717867,-495.01,0.00029589,3]
[367114528,1750662717878,-490.0,0.00029589,3]
[367114529,1750662717889,-668.52,0.00029589,3]
[367114530,1750662717900,-490.0,0.00029589,3]
[367114531,1750662717912,-698.01,0.00029589,3]
[367114532,1750662717923,-586.16,0.00029589,3]
[367114533,1750662717935,-490.0,0.00029589,3]
[367114534,1750662717946,-490.0,0.00029589,3]
[367114535,1750662717957,-490.0,0.00029589,3]
[367114536,1750662717969,-644.39,0.00029589,3]
[367114537,1750662717980,-617.7,0.00029589,3]
[367114538,1750662717991,-826.8,0.00029589,3]
[367114539,1750662718003,-490.0,0.00029589,3]
[367114540,1750662718016,-490.0,0.00029589,3]
[367114541,1750662718028,-490.0,0.00029589,3]
[367114542,1750662718040,-626.46,0.00029589,3]
[367114543,1750662718052,-490.0,0.00029589,3]
[367114544,1750662718064,-841.55,0.00029589,3]
[367114545,1750662718076,-625.27,0.00029589,3]
[367114546,1750662718087,-1584.78,0.00029589,3]
[367114547,1750662718098,-490.0,0.00029589,3]
[367114548,1750662718114,-490.0,0.00029589,3]
[367114549,1750662718127,-490.0,0.00029589,3]
[367114550,1750662718139,-490.0,0.00029589,3]
[367114551,1750662718150,-1089.25,0.00029589,3]
[367114552,1750662718162,-914.26,0.00029589,3]
[367114553,1750662718174,-777.39,0.00029589,3]
[367114554,1750662718186,-667.3,0.00029589,3]
[367114555,1750662718197,-1172.55,0.00029589,3]
[367114556,1750662718210,-563.6,0.00029589,3]
[367114557,1750662718223,-857.69,0.00029589,3]
[367114558,1750662718235,-601.26,0.00029589,3]
[367114559,1750662718247,-1486.14,0.00029589,3]
[367114560,1750662718259,-654.18,0.00029589,3]
[367114561,1750662718271,-641.56,0.00029589,3]
[367114562,1750662718283,-2328.1,0.00029589,3]
[367114563,1750662718295,-490.0,0.00029589,3]
[367114564,1750662718308,-1714.75,0.00029589,3]
[367114565,1750662718321,-490.0,0.00029589,3]
[367114566,1750662718334,-834.55,0.00029589,3]
[367114567,1750662718345,-2984.61,0.00029589,3]
[367114568,1750662718357,-1666.5,0.00029589,3]
[367114569,1750662718369,-490.0,0.00029589,2]
[367114570,1750662718381,-579.07,0.00029589,3]
[367114571,1750662718393,-774.87,0.00029589,3]
[367114572,1750662718404,-198.016965,0.00029589,3]
[367114573,1750662718416,-490.0,0.00029589,3]
[367114574,1750662718427,-523.64,0.00029589,3]
[367114575,1750662718440,-1685.1,0.00029589,3]
[367114576,1750662718451,-572.67182859,0.00029589,3]
[367114577,1750662718463,-685.83,0.00029589,3]
[367114578,1750662718475,-845.32,0.00029589,3]
[367114579,1750662718487,-490.0,0.00029589,3]
[367114580,1750662718500,-490.0,0.00029589,3]
[367114581,1750662718511,-1003.013708,0.00029589,3]
[367114582,1750662718525,-407.03,0.00029589,3]
[367114583,1750662718536,-367.80085142,0.00029589,3]
[367114584,1750662718549,-322.90091852,0.00029589,3]
[367114585,1750662718561,-490.0,0.00029589,3]
[367114586,1750662718573,-620.28,0.00029589,3]
[367114587,1750662718585,-490.0,0.00029589,3]
[367114588,1750662718596,-692.18,0.00029589,3]
[367114589,1750662718608,-583.42,0.00029589,3]
[367114590,1750662718621,-1382.11,0.00029589,3]
[367114591,1750662718633,-490.0,0.00029589,3]
[367114592,1750662718645,-957.53,0.00029589,3]
[367114593,1750662718656,-1520.85,0.00029589,3]
[367114594,1750662718676,-852.4,0.00029589,3]
[367114595,1750662718687,-1514.64,0.00029589,3]
[367114596,1750662718699,-564.98,0.00029589,3]
[367114597,1750662718711,-1413.76,0.00029589,3]
[367114598,1750662718723,-621.88,0.00029589,3]
[367114599,1750662718735,-643.76,0.00029589,3]
[367114600,1750662718747,-1486.85,0.00029589,3]
[367114601,1750662718758,-599.57859806,0.00029589,3]
[367114602,1750662718770,-193.07925657,0.00029589,3]
[367114603,1750662718781,-605.57,0.00029589,3]
[367114604,1750662718792,-765.6,0.00029589,3]
[367114605,1750662718805,-490.0,0.00029589,3]
[367114606,1750662718817,-635.87,0.00029589,3]
[367114607,1750662718828,-490.0,0.00029589,3]
[367114608,1750662718840,-748.29,0.00029589,3]
[367114609,1750662718852,-559.87,0.00029589,3]
[367114610,1750662718864,-702.32,0.00029589,3]
[367114611,1750662718876,-521.1,0.00029589,3]
[367114612,1750662718888,-565.83088867,0.00029589,3]
[367114613,1750662718900,-1437.96,0.00029589,3]
[367114614,1750662718911,-933.29,0.00029589,3]
[367114615,1750662718923,-623.74,0.00029589,3]
[367114616,1750662718934,-1229.23,0.00029589,3]
[367114617,1750662718946,-1240.62,0.00029589,3]
[367114618,1750662718957,-490.0,0.00029589,3]
[367114619,1750662718968,-1044.91,0.00029589,3]
[367114620,1750662718980,-636.16,0.00029589,3]
[367114621,1750662718991,-490.92,0.00029589,3]
[367114622,1750662719002,-583.46,0.00029589,3]
[367114623,1750662719015,-1648.05,0.00029589,3]
[367114624,1750662719026,-745.48,0.00029589,3]
[367114625,1750662719038,-1819.02,0.00029589,3]
[367114626,1750662719049,-1025.74,0.00029589,3]
[367114627,1750662719061,-490.0,0.00029589,3]
[367114628,1750662719073,-507.64,0.00029589,3]
[367114629,1750662719084,-1801.52,0.00029589,3]
[367114630,1750662719096,-1776.13,0.00029589,3]
[367114631,1750662719108,-803.35,0.00029589,3]
[367114632,1750662719121,-1305.95,0.00029589,3]
[367114633,1750662719134,-490.0,0.00029589,3]
[367114634,1750662719146,-825.12,0.00029589,3]